Cogmind - Beta 13 @@@ ROGUE MODE // 2024.05.15 @ 18:29:38 // Winter2022/Polymind Player: Sunvar Result: Self-destructed Performance ------------- Evolutions (1) 500 Regions Visited (2) 400 Robots Destroyed (7) 35 Value Destroyed (123) 123 Prototype IDs (0) 0 Alien Tech Used (0) 0 Bonus (780) 780 TOTAL SCORE: 1728 Bonus ------- Polymind Skill 580 Pacifist 200 Cogmind --------- Core Integrity 236/400 Matter 93/100 Energy 215/215 System Corruption 0% Temperature Cool (0) Movement Treading (160) Location -9/Materials Parts ------- > --- POWER (1) -------- Improved Ion Engine > --- PROPULSION (2) --- Light Treads Light Treads > --- UTILITY (3) ------ Heat Sink Heat Sink Light Armor Plating > --- WEAPON (2) ------- Beam Rifle Heavy Assault Rifle > --- INVENTORY (1) ---- (None) Peak State ------------ > --- POWER ------------ Improved Ion Engine > --- PROPULSION ------- Light Treads Light Treads > --- UTILITY ---------- Heat Sink Heat Sink Light Armor Plating > --- WEAPON ----------- Beam Rifle Heavy Assault Rifle > --- INVENTORY -------- (None) [Rating: 11] Favorites ----------- Power Improved Ion Engine Engine Improved Ion Engine Propulsion Light Treads Treads Light Treads Hover Unit Hover Unit Utility Heat Sink Device Heat Sink Hackware Hacking Suite Protection Light Armor Plating Weapon Beam Rifle Energy Gun Beam Rifle Ballistic Gun Heavy Assault Rifle Special Melee Weapon Datajack Build | -11 -10 -9 ------- Run | Yrd Mat Mat Slots Evolved . | . . . Power . | . . . Propulsion . | . . . Utility . | . . . Weapon . | . . . Parts Attached . | . . . Power . | . . . Engine . | . . . Core . | . . . Reactor . | . . . Propulsion . | . . . Treads . | . . . Leg . | . . . Wheel . | . . . Hover . | . . . Flight . | . . . Utility . | . . . Device . | . . . Storage . | . . . Processor . | . . . Hackware . | . . . Protection . | . . . Artifact . | . . . Weapon . | . . . Energy Gun . | . . . Energy Cannon . | . . . Ballistic Gun . | . . . Ballistic Cannon . | . . . Launcher . | . . . Special Weapon . | . . . Impact Weapon . | . . . Slashing Weapon . | . . . Piercing Weapon . | . . . Special Melee Weapon . | . . . Unidentified Prototypes . | . . . Parts Lost . | . . . Power . | . . . Propulsion . | . . . Utility . | . . . Weapon . | . . . Highest Loss Streak . | . . . To Critical Strikes . | . . . Average Slot Usage (%) 95 | . 85 100 Engine 14 | . 17 13 Treads 13 | . . 19 Hover 16 | . 34 9 Device 13 | . . 19 Hackware 8 | . 17 4 Protection 6 | . . 9 Energy Gun 6 | . . 9 Ballistic Gun 6 | . . 9 Special Melee Weapon 8 | . 17 4 Naked Turns 15 | . 15 . Heaviest Build 18 | . 4 18 Greatest Support 40 | 3 12 40 Greatest Overweight (x) . | . . . Average Overweight (x) . | . . . Largest Inventory Capacity 1 | . 1 1 Average Capacity . | . . 1 Most Carried . | . . . Average Carried . | . . . Final Capacity 1 | . 1 1 Final Carried . | . . . Class Distribution -------------------- 53% | Sentry 40% | Operator 6% | Cogmind Dominant Class ---------------- Operator | -10/Materials Sentry | -9/Materials Resources | -11 -10 -9 ----------- Run | Yrd Mat Mat Matter Collected 63 | . . 63 Remotely . | . . . Salvage Created 169 | . . 169 Parts 14 | . . 14 Haulers Intercepted . | . . . Recyclers Shooed . | . . . Parts Field Recycled . | . . . Retrieved Matter . | . . . Parts Self-Destructed . | . . . Prevented . | . . . Kills | -11 -10 -9 ------- Run | Yrd Mat Mat Combat Hostiles Destroyed 4 | . . 4 Guns 4 | . . 4 Classes Destroyed 3 | . . 3 Watcher 3 | . . 3 Swarmer 3 | . . 3 Sentry 1 | . . 1 Best Kill Streak 3 | . . 3 Combat Bots Only 3 | . . 3 Max Kills in Single Turn 1 | . . 1 Gunslinging . | . . . Exploded . | . . . Melee . | . . . Uniques/NPCs Destroyed . | . . . Combat | -11 -10 -9 -------- Run | Yrd Mat Mat Hostile Shots Fired 58 | . . 58 Missed 9 | . . 9 Damage Taken 586 | . . 586 Core 164 | . . 164 Absorbed by Shields . | . . . Core Remaining (%) 100 | 100 100 . Volleys Fired 19 | . . 19 Largest 2 | . . 2 Hottest 79 | . . 79 Shots Fired 38 | . . 38 Gun 38 | . . 38 Cannon . | . . . Launcher . | . . . Special . | . . . Kinetic 19 | . . 19 Thermal 19 | . . 19 Explosive . | . . . Electromagnetic . | . . . Robot Hit Streak 10 | . . 10 Robot Miss Streak 4 | . . 4 Penetration Max . | . . . Secondary Targets . | . . . Shots Hit Robots 27 | . . 27 Core Hits 10 | . . 10 Critical Kills . | . . . Critical Parts Destroyed . | . . . Critical Strikes 1 | . . 1 Burn 1 | . . 1 Melee Attacks 3 | . . 3 Impact . | . . . Slashing . | . . . Piercing . | . . . Sneak Attacks 1 | . . 1 Combat Hostiles 1 | . . 1 Follow-up Attacks . | . . . Damage Inflicted 395 | . . 395 Guns 364 | . . 364 Cannons . | . . . Explosions . | . . . Melee . | . . . Ramming 31 | . . 31 Kinetic 156 | . . 156 Thermal 208 | . . 208 Explosive . | . . . Electromagnetic . | . . . Impact . | . . . Slashing . | . . . Piercing . | . . . Highest Corruption . | . . . Average Corruption . | . . . Corruption Purged . | . . . Corruption Blocked . | . . . Overload Shots . | . . . Overflow Damage . | . . . Projectiles . | . . . Explosions . | . . . Melee . | . . . Knockbacks . | . . . Impact . | . . . Kinetic . | . . . Secondary . | . . . Self-Inflicted Damage 11 | . . 11 Shots . | . . . Rammed 14 | . . 14 Targets Rammed 14 | . . 14 Kicked . | . . . Crushed . | . . . Highest Temperature 44 | . . 44 Average Temperature 22 | . . 22 Received Heat Transfer 186 | . . 186 Siege Activations . | . . . Robots Corrupted . | . . . Combat Hostiles . | . . . Parts Fried . | . . . Impact Corruptions . | . . . Robots Melted . | . . . Combat Hostiles . | . . . Parts Melted 1 | . . 1 Heat Transferred 592 | . . 592 Parts Sabotaged . | . . . Parts Stolen . | . . . Parts Stripped . | . . . Power Chain Reactions . | . . . Alert | -11 -10 -9 ------- Run | Yrd Mat Mat Peak Influence 193 | . 29 193 Initial 11 | . . 11 Average 73 | . 18 100 Maximum Alert Level . | . . . Low Security (%) 100 | 100 100 100 Level 1 . | . . . Level 2 . | . . . Level 3 . | . . . Level 4 . | . . . Level 5 . | . . . High Security . | . . . Max Security . | . . . Squads Dispatched . | . . . Investigation . | . . . Extermination . | . . . Reinforcement . | . . . Assault . | . . . Garrison . | . . . Intercept . | . . . Searches Triggered . | . . . Construction Impeded . | . . . Haulers Reinforced . | . . . Active Scanning Responses . | . . . Cargo Convoy Interrupts . | . . . Stealth | -11 -10 -9 --------- Run | Yrd Mat Mat Distress Signals 1 | . . 1 Communications Jammed . | . . . Distress Signals . | . . . Times Spotted 17 | . 1 16 Peak Tracking Total 6 | . 1 6 Tactical Retreats . | . . . Traps | -11 -10 -9 ------- Run | Yrd Mat Mat Traps Triggered . | . . . Indirectly . | . . . Trap Hack Attempts . | . . . Triggered . | . . . Disarmed . | . . . Reprogrammed . | . . . Reused . | . . . Traps Extracted . | . . . Installed . | . . . Triggered . | . . . Machines | -11 -10 -9 ---------- Run | Yrd Mat Mat Machines Disabled . | . . . Max in Single Turn . | . . . Machines Repaired . | . . . Machines Dismantled . | . . . Machines Sabotaged . | . . . Overloaded Fab Kills . | . . . Hacking | -11 -10 -9 --------- Run | Yrd Mat Mat Machines Accessed 2 | . 2 . Terminals 2 | . 2 . Fabricators . | . . . Repair Stations . | . . . Recycling Units . | . . . Scanalyzers . | . . . Garrison Access . | . . . Total Hacks 2 | . 2 . Successful 2 | . 2 . Failed . | . . . Catastrophic . | . . . Database Lockouts . | . . . Manual 2 | . 2 . Terminals 2 | . 2 . Fabricators . | . . . Repair Stations . | . . . Recycling Units . | . . . Scanalyzers . | . . . Garrison Access . | . . . Terminal Hacks 2 | . 2 . Level Access Points 1 | . 1 . Reprogram Traps 1 | . 1 . Fabricator Hacks . | . . . Repair Station Hacks . | . . . Recycling Unit Hacks . | . . . Scanalyzer . | . . . Garrison Access Hacks . | . . . Unauthorized Hacks . | . . . Terminals . | . . . Fabricators . | . . . Repair Stations . | . . . Recycling Units . | . . . Scanalyzers . | . . . Garrison Access . | . . . Data Cores Recovered . | . . . Used . | . . . Hacking Detections . | . . . Full Trace Events . | . . . Feedback Events . | . . . Feedback Blocked . | . . . Robot Schematics Acquired . | . . . Robots Built . | . . . Authchips . | . . . Time . | . . . Total Robot Build Rating . | . . . Part Schematics Acquired . | . . . Parts Built . | . . . Authchips . | . . . Time . | . . . Total Part Build Rating . | . . . Parts Repaired . | . . . Time . | . . . Parts Recycled . | . . . Recycled Matter . | . . . Retrieved Matter . | . . . Retrieved Components . | . . . Parts Scanalyzed . | . . . Part Schematics Acquired . | . . . Parts Damaged . | . . . Bothacking | -11 -10 -9 ------------ Run | Yrd Mat Mat Used RIF Installer . | . . . Robots Hacked 2 | . 1 1 Non-combat 1 | . 1 . Combat 1 | . . 1 Robot Hacks Applied 2 | . 1 1 find_terminals 1 | . 1 . find_shortcuts 1 | . . 1 Relay Couplers Released . | . . . Fabnet Peak Effective % . | . . . Robots Rewired . | . . . Allies Hacked . | . . . Hacks Repelled . | . . . Allies | -11 -10 -9 -------- Run | Yrd Mat Mat Total Allies . | . . . Largest Group . | . . . Highest-Rated Group . | . . . Highest-Rated Ally . | . . . Total Orders . | . . . Ally Attacks . | . . . Total Damage . | . . . Kills . | . . . Allies Corrupted . | . . . Allies Melted . | . . . Intel | -11 -10 -9 ------- Run | Yrd Mat Mat Robot Analysis Total 2 | . 1 1 Derelict Logs Recovered . | . . . Drone Launches . | . . . Drone Recoveries . | . . . Exploration | -11 -10 -9 ------------- Run | Yrd Mat Mat Turns Passed 254 | 9 73 172 Spaces Moved 228 | 18 128 82 Core 42 | 18 24 . Treads 38 | . . 38 Legs . | . . . Wheels . | . . . Hover 148 | . 104 44 Flight . | . . . Fastest Speed 50 | 50 50 56 Average Speed 72 | 50 54 104 Slowest Speed 160 | 50 56 160 Overloaded Moves . | . . . Propulsion Burnouts . | . . . Robots Hopped . | . . . Cave-ins Triggered . | . . . Exploration Rate (%) 15 | 3 33 11 Regions Visited 2 Branch Regions . Pre-discovered Areas . | . . . Known Exits Taken 1 | . 1 . Unknown Exits Taken 1 | 1 . . Scrap Searched . | . . . Spaces Dug . | . . . Terrain Destroyed . | . . . Melee . | . . . Projectile . | . . . AOE . | . . . Terrain Rammed . | . . . Walls Destroyed . | . . . Machines Disabled . | . . . Actions | -11 -10 -9 --------- Run | Yrd Mat Mat Total 274 | 17 130 127 Wait 12 | . 3 9 Move 226 | 17 127 82 Hop . | . . . Pick Up . | . . . Fast Attach . | . . . Attach . | . . . Detach . | . . . Swap . | . . . Drop . | . . . Fire 19 | . . 19 Melee 3 | . . 3 Ram 12 | . . 12 Kick . | . . . Crush 2 | . . 2 Escape Stasis . | . . . Rewire . | . . . Trap . | . . . Miscellaneous . | . . . Route ------- -11/Scrapyard -10/Materials (discovered 3 exits: *Mat x3) -9/Materials History --------- Turn | Location | Event 4 | -11/Scrapyard | Discovered new exit (range 13) 10 | -11/Scrapyard | Entered Materials 62 | -10/Materials | Discovered new exit (range 14) 76 | -10/Materials | Identified exit to Materials 83 | -10/Materials | Entered another Materials area 255 | -9/Materials | Self-destructed Last Messages --------------- 00189_ R-06 Scavenger collects Lgt. Treads. 00190_ K-01 Serf collects debris. 00192_ R-06 Scavenger collects Heat Sink. 00194_ Acquired 3 matter. 00196_ W-16 Scout suffers critical hit (Burn). 00196_ R-06 Scavenger collects Heat Sink. 00197_ Acquired 3 matter. 00199_ W-16 Scout destroyed. 00200_ Acquired 3 matter. 00204_ K-01 Serf collects debris. 00240_ Critical hit (Burn: +37). 00242_ C-30 ARC bursts open, deploying its payload. 00242_ G-47 Trooper unfolds itself. 00242_ G-34 Mercenary unfolds itself. 00245_ Slammed into G-47 Trooper. 00247_ Slammed into A-02 Transporter. 00249_ M-13 Machinist repairs Y-45 Defender. 00250_ K-01 Serf collects debris. 00252_ M-13 Machinist repairs Heat Sink. 00254_ M-13 Machinist repairs Imp. Ion Engine. Map ----- +----------------------------------------------------+ | ?????????????????????????????????????????????????? | | ?????????????????????????????????????????????????? | | ?????????????????????????????????????????????????? | | ?????????????????????????????????????????????????? | | ?????????????????????????????????????????????????? | | ?????????????????????????????????????????????????? | | ?????????????????????????????????????????????????? | | ?????????????????????????????????????????????????? | | ?????????????????????????????????????????????????? | | ?????????????????????????????????????????????????? | | ??????????####???????????????????????????????????? | | ?????????? ???????????????????????????????????? | | ?????????? ?????????????##????????????????????? | | ?????????? #?????#######Y#????????????????????? | | ??????????# +?????# #????????????????????? | | ??????????# #?????# #????????????????????? | | ??????????# #?????# = #????????????????????? | | ??????????# #?????# #????????????????????? | | ??????????# #?????# [[! #????????????????????? | | ??????????# #?????# [!! #????????????????????? | | ??????????# #?????# [!! +????????????????????? | | ??????????# +?????# #????????????????????? | | ??????????# #?????# #????"???????????????? | | ??????????# %#?????? | #??""""??????????????? | | ????####### #???????? ?? """""?????????????? | | ###########Y### """""?????????????? | | ????####### !% " """ #?????????? | | ??????????# %!! "% #?????????? | | ??????????# =%! g g Y #?????????? | | ??????????# !#########m############# ##?????????? | | ?#######??# #????# #????????????????????? | | ?#%%%% #### #????# """ #????????????????????? | | ?# %%%%=^^ #????# """ ] #????????????????????? | | ?# % ^^ #????# """ #????????????????????? | | ?# % #????# #????????????????????? | | ?# ########????# """ #????????????????????? | | ?## ##???????????# R" #????????????????????? | | ??# #?????????+??+ """ #????????????????????? | | ??# #????????????# ?? #????????????????????? | | ?? +????????????#### #???#????????????????????? | | ? # #??????????????????????????????????????????? | | # #??????????????????????????????????????????? | | ?# #??????????????????????????????????????????? | | +## #?#????????????????????????????????????????? | | # #????????????????????????????????????????? | | # #????????????????????????????????????????? | | #????????????????????????????????????????? | | # #????????????????????????????????????????? | | ###????????????????????????????????????????? | | ##########?????????????????????????????????? | +----------------------------------------------------+ Best States ------------- Heat Dissipation 36 Energy Generation 17 Energy Capacity 215 Matter Stores 100 Matter Capacity 100 Sight Range 16 Terrain Scan Density 10 Armor Coverage 150 Resistance: EX 50 Resistance: I 25 Evasion (%) 53 Recoil Reduction 2 Offensive Hacking 10 Item Schematics ----------------- None Robot Schematics ------------------ None Fabricated ------------ Nothing Alien Tech Used ----------------- None Achievements -------------- None Challenges ------------ None Polymind | -11 -10 -9 ---------- Run | Yrd Mat Mat Hosts 2 | . 1 1 Combat Hostiles 1 | . . 1 Allies . | . . . Unique Host Classes 2 | . 1 1 Average Host Suspicion 76 | . 34 90 Unsuspicious Activity 12 | . 12 . Returns to Shadow . | . . . Fuzzy Dispatches . | . . . Protomatter Created 3 | . . 3 Used 28 | . 5 23 Decayed 3 | . . 3 Highest Spend 23 | . 5 23 Top 5 Hosts by Kills: Y-45 Defender (-9/Materials: 4) Game ------ Seed TiamatBackupFlightbrick Manual? 0 Play Time 00:05:23 Cumulative 68.5 hours Start 2024.05.15 @ 18:23:37 End 2024.05.15 @ 18:29:38 Sessions 1 Manual Loads 0 Difficulty Rogue Special Mode Winter2022/Polymind Game No. 43 Rogue 43 Adventurer 0 Explorer 0 Win Type - Total 1 Types 1/0/0/0/0/0/0/0/0 Lore% 33 Gallery% 46 Achievement% 33 Wizard Run 0 Options --------- Layout 0 ASCII 1 Keyboard 1 Movement Numpad Keybinds 0 Fullscreen 1 Font 24/Proggy Map View 76x56 Zoom Use 0% Tactical HUD 1 Map Filters NONE Filters NONE Steam 1 RUN: 0ab6aa95-fce4-419d-866f-dcfad4e8615d